bitfinex-derivatives/quotes_ETHF0:USTF0_20250627
["timestamp","ask_amount","ask_price","bid_price","bid_amount"]
[1751048297863,1.4562,2406.0,2405.7,32.236]
[1751048298062,0.83097,2406.0,2405.8,3.86974911]
[1751048298259,0.83097,2406.0,2405.9,0.831]
[1751048298461,4.995,2406.0,2405.9,0.83099]
[1751048298868,4.03864,2406.4,2405.9,1.4607]
[1751048299070,1.26984384,2406.3,2406.1,7.07754911]
[1751048299263,4.995,2406.2,2406.1,9.32047911]
[1751048299465,4.995,2406.2,2406.1,4.03873]
[1751048299763,5.8259,2406.2,2406.1,4.03873]
[1751048299966,4.995,2406.2,2406.1,4.03873]
[1751048300862,5.8259,2406.2,2406.1,4.03873]
[1751048301064,5.8259,2406.2,2406.1,3.2078]
[1751048301266,6.26730978,2406.2,2405.9,0.83098]
[1751048301460,0.831,2405.9,2405.8,3.2078]
[1751048301666,3.86974911,2405.9,2405.6,6.669]
[1751048301870,0.83107,2405.7,2405.6,32.231]
[1751048302265,2.99107,2405.7,2405.6,32.231]
[1751048302764,0.8311,2405.6,2405.5,3.2078]
[1751048302963,2.2983,2405.6,2405.5,36.26894]
[1751048303565,2.2983,2405.6,2405.5,35.4378]
[1751048303768,2.2983,2405.6,2405.5,3.2078]
[1751048303966,2.2983,2405.6,2405.5,9.8768]
[1751048304268,2.2983,2405.6,2405.5,35.4378]
[1751048305566,2.2983,2405.6,2405.5,36.26894]
[1751048305762,0.8311,2405.6,2405.5,36.26894]
[1751048305970,0.83109,2405.7,2405.6,0.8311]
[1751048306469,0.83109,2405.7,2405.5,36.26894]
[1751048306670,5.7298,2405.8,2405.5,36.26894]
[1751048306865,1.3321,2405.7,2405.5,36.26894]
[1751048307174,0.8311,2405.6,2405.5,35.4378]
[1751048307870,0.8311,2405.6,2405.5,36.26894]
[1751048308265,2.16319,2405.7,2405.6,0.8311]
[1751048308465,0.83109,2405.7,2405.6,0.8311]
[1751048308668,0.83109,2405.7,2405.5,35.4378]
[1751048308669,0.8311,2405.6,2405.5,35.4378]
[1751048308969,0.8311,2405.6,2405.5,36.26894]
[1751048309573,0.8311,2405.6,2405.5,35.4378]
[1751048309874,0.8311,2405.6,2405.5,35.4388]
[1751048310672,0.8311,2405.6,2405.5,9.8768]
[1751048310869,0.8311,2405.6,2405.5,35.4388]
[1751048312464,2.1633,2405.6,2405.5,35.4388]
[1751048312669,0.83121,2405.3,2405.2,51.0748]
[1751048312870,0.83118,2405.4,2405.3,0.83118]
[1751048313473,0.83121,2405.3,2405.2,58.57503]
[1751048313670,0.83121,2405.3,2405.2,84.13603]
[1751048313874,0.83119,2405.4,2405.3,0.83121]
[1751048314077,2.16339,2405.4,2405.3,25.562]
[1751048314575,2.16339,2405.4,2405.3,26.39321]
[1751048314973,2.16339,2405.4,2405.3,25.562]
[1751048315369,2.16339,2405.4,2405.3,26.39321]
[1751048315775,2.16339,2405.4,2405.3,25.562]
[1751048316070,0.83121,2405.3,2405.2,51.90602]
[1751048316275,0.83121,2405.3,2405.2,84.13702]
[1751048316276,2.1194,2405.3,2405.2,84.13702]
[1751048316476,2.95061,2405.3,2405.2,51.90602]
[1751048316676,2.95061,2405.3,2405.2,54.537]
[1751048316975,7.94561,2405.3,2405.2,80.098]
[1751048317179,7.1144,2405.3,2404.9,3.2078]
[1751048317367,2.27844,2405.2,2405.1,0.83125]
[1751048317572,2.27844,2405.2,2405.1,26.39225]
[1751048317771,0.83128,2405.1,2405.0,7.50129]
[1751048317973,0.83128,2405.1,2405.0,33.06329]
[1751048318175,1.50818,2405.1,2405.0,7.50129]
[1751048318479,0.83131,2405.0,2404.9,3.2078]
[1751048318680,0.83131,2405.0,2404.9,35.4398]
[1751048319174,0.83131,2405.0,2404.9,9.8778]
[1751048319481,0.83138,2404.8,2404.7,6.67]
[1751048320081,1.50518,2404.8,2404.7,32.231]
[1751048320677,3.8653,2405.0,2404.9,0.83135]
[1751048320878,2.10144289,2405.0,2404.9,26.39335]
[1751048321077,0.6769,2405.1,2405.0,0.83131]
[1751048321078,1.5082,2405.1,2405.0,0.83131]
[1751048321482,1.2185,2405.1,2405.0,7.50131]
[1751048322384,0.5416,2405.1,2405.0,7.50131]
[1751048323078,1.37288,2405.1,2405.0,7.50131]
[1751048323383,0.5416,2405.1,2405.0,7.50131]
[1751048323687,1.37288,2405.1,2405.0,7.50131]
[1751048323981,0.5416,2405.1,2405.0,7.50131]
[1751048324672,1.37288,2405.1,2405.0,7.50131]
[1751048324875,1.37288,2405.1,2405.0,6.67]
[1751048326385,1.37288,2405.1,2404.9,28.7698]
[1751048326386,0.83131,2405.0,2404.9,3.2078]
[1751048326585,2.19851,2405.0,2404.9,35.4408]
[1751048326782,2.19851,2405.0,2404.9,3.2078]
[1751048326983,0.83144,2404.7,2404.6,3.2078]
[1751048327178,0.83152,2404.4,2404.3,9.8788]
[1751048327380,0.83155,2404.3,2404.2,6.671]
[1751048327581,0.83162,2404.1,2404.0,3.2078]
[1751048327789,4.70309634,2404.1,2404.0,3.2078]
[1751048327985,0.83169,2403.9,2403.8,6.671]
[1751048328184,0.83169,2403.9,2403.8,32.233]
[1751048328382,0.83169,2403.9,2403.8,6.671]
[1751048328583,2.19889,2403.9,2403.8,6.671]
[1751048329593,2.19889,2403.9,2403.8,7.50273]
[1751048330094,1.3672,2403.9,2403.8,7.50273]
[1751048330482,2.19889,2403.9,2403.8,6.671]
[1751048330687,0.83169,2403.9,2403.8,6.671]
[1751048331084,0.83169,2403.9,2403.8,7.50273]
[1751048331390,2.26309,2403.9,2403.8,7.50273]
[1751048331990,6.4264,2403.9,2403.8,7.50273]
[1751048332385,0.83174,2403.8,2403.6,3.2078]
[1751048332689,0.83174,2403.8,2403.7,25.569]
[1751048332887,0.83176,2403.7,2403.6,6.668]
[1751048333083,0.83176,2403.7,2403.6,32.237]
[1751048333390,1.4394,2403.8,2403.6,32.237]
[1751048333581,0.83176,2403.7,2403.6,33.06879]
[1751048333785,2.27115,2403.8,2403.7,0.83176]
[1751048334089,2.27115,2403.8,2403.6,33.06877]
[1751048334389,0.83176,2403.7,2403.6,33.06877]
[1751048334582,0.83176,2403.7,2403.6,32.237]
[1751048335091,2.27115,2403.8,2403.6,33.06879]
[1751048335393,0.83176,2403.7,2403.6,33.06879]
[1751048335691,0.83179,2403.6,2403.5,0.83181]
[1751048335888,1.50119,2403.7,2403.5,33.07181]
[1751048336095,0.83179,2403.6,2403.5,33.07182]
[1751048336390,0.6694,2403.7,2403.3,3.2078]
[1751048336587,0.83185,2403.5,2403.4,33.07085]
[1751048337291,0.83185,2403.5,2403.4,6.669]
[1751048337587,0.83196,2403.2,2403.0,3.2078]
[1751048337782,1.4036,2403.4,2403.1,6.669]
[1751048337986,0.83197,2403.2,2403.1,32.239]
[1751048338184,0.83197,2403.2,2403.1,33.07097]
[1751048338788,0.83197,2403.2,2403.1,32.241]
[1751048339095,0.83197,2403.1,2403.0,6.669]
[1751048339292,0.83197,2403.1,2403.0,32.241]
[1751048339593,2.21847,2403.1,2403.0,6.669]
[1751048339790,0.83207,2402.8,2402.7,3.2078]
[1751048340090,0.83212,2402.7,2402.6,6.669]
[1751048340280,11.33098027,2402.7,2402.1,10.7091]
[1751048340485,0.83228,2402.2,2402.1,6.669]
[1751048340884,1.3865,2402.3,2401.9,25.575]
[1751048341088,2.21884,2402.1,2401.9,25.575]
[1751048341291,1.3865,2402.1,2401.9,25.575]
[1751048341589,0.83235,2402.0,2401.9,25.575]
[1751048341990,1.3865,2402.1,2401.8,6.671]
[1751048342189,1.3865,2402.1,2401.8,32.246]
[1751048342390,1.3865,2402.1,2402.0,0.83235]
[1751048342590,2.21881,2402.1,2401.9,0.83236]
[1751048342886,1.3865,2402.1,2402.0,0.83235]
[1751048343089,4.5943,2402.1,2401.8,0.83239]
[1751048343285,7.44168027,2401.9,2401.2,3.2078]
[1751048343593,0.8325,2401.6,2400.9,9.8788]
[1751048343897,1.4262,2401.5,2401.2,0.83261]
[1751048344093,8.86788027,2401.5,2401.1,0.83265]
[1751048344285,7.44168027,2401.2,2400.9,6.671]
[1751048344490,2.1629,2401.1,2401.0,0.8327]
[1751048344692,0.7367,2401.1,2401.0,0.8327]
[1751048344888,2.08175,2401.0,2400.0,3.2078]
[1751048345090,7.44168027,2400.1,2399.8,0.83311]
[1751048345395,1.337,2400.0,2399.6,40.8]
[1751048345707,1.337,2400.0,2399.8,0.8331]
[1751048345991,1.337,2400.0,2399.5,3.2078]
[1751048346496,7.44168027,2399.6,2399.5,0.83322]
[1751048346690,7.44168027,2399.6,2399.2,3.2078]
[1751048346890,1.337,2399.5,2399.3,0.83326]
[1751048347096,1.337,2399.5,2399.4,0.83325]
[1751048347392,4.5448,2399.5,2399.2,0.83331]
[1751048347599,4.5448,2399.5,2399.0,6.672]
[1751048347785,4.5448,2399.5,2398.9,3.2078]
[1751048347991,7.44168027,2399.3,2399.0,7.50837]
[1751048348192,2.25242,2399.2,2399.0,6.675]
[1751048348390,2.25242,2399.2,2398.3,3.2078]
[1751048348391,0.83358,2398.5,2398.3,3.2078]
[1751048348690,8.86078027,2398.4,2398.0,3.2078]
[1751048349190,8.86078027,2398.4,2398.3,0.83363]
[1751048349391,8.13758027,2398.9,2398.3,3.2078]
[1751048349586,1.4191,2398.7,2398.6,0.83353]
[1751048349896,1.96,2398.4,2398.3,10.71643]
[1751048350089,8.27518027,2398.7,2398.3,6.675]
[1751048350291,3.2078,2398.6,2398.0,3.2078]
[1751048350492,7.44168027,2398.4,2398.1,0.83367]
[1751048350798,7.44168027,2398.4,2398.0,9.8858]
[1751048350799,12.06858027,2398.6,2398.0,9.8858]
[1751048351095,2.17372,2398.4,2398.0,0.83372]
[1751048351400,2.17372,2398.4,2397.9,0.83376]
[1751048351401,0.83367,2398.2,2397.9,0.83376]
[1751048351695,3.2078,2398.6,2397.8,7.44168027]
[1751048352000,1.9803,2398.1,2398.0,0.83374]
[1751048352199,1.9803,2398.1,2398.0,4.04154]
[1751048352401,3.9037,2398.9,2398.8,0.83346]
[1751048352601,3.2078,2399.2,2398.9,0.83339]
[1751048352896,0.0168,2398.9,2398.5,3.2078]
[1751048353299,0.85022,2398.9,2398.6,0.83351]
[1751048353495,2.17358,2398.8,2398.1,3.2078]
[1751048353692,13.39833974,2398.8,2398.1,9.8878]
[1751048353900,5.72226,2398.8,2398.5,0.83355]
[1751048354195,1.3401,2398.8,2398.7,0.83349]
[1751048354698,0.7097,2399.1,2398.4,9.8878]
[1751048354999,4.9945,2398.8,2398.7,0.83349]
[1751048355196,4.9945,2398.8,2398.4,9.8878]
[1751048355397,0.83354,2398.6,2398.1,3.2078]
[1751048355596,5.82797,2398.8,2398.1,3.2078]
[1751048355796,6.3315,2398.8,2398.5,0.83355]
[1751048355999,6.3315,2398.8,2398.1,44.0078]
[1751048356195,6.3315,2398.8,2398.2,6.682]
[1751048356894,6.3315,2398.8,2398.3,0.83363]
[1751048357090,6.3315,2398.8,2398.2,6.682]
[1751048357297,6.3315,2398.8,2398.5,0.83355]
[1751048357496,0.83355,2398.6,2398.2,6.682]
[1751048357702,6.3315,2398.8,2398.2,6.682]
[1751048357900,0.83351,2398.7,2398.2,6.682]
[1751048358097,1.3581,2398.6,2398.5,0.83356]
[1751048358496,4.9945,2398.8,2398.2,6.682]
[1751048358801,3.2078,2399.2,2398.7,3.2078]
[1751048359002,4.04114,2399.2,2399.0,0.83337]
[1751048359401,3.2078,2399.2,2398.8,6.818]
[1751048359599,4.9945,2399.0,2398.9,0.83341]
[1751048359998,4.9945,2399.0,2398.8,6.818]
[1751048360195,4.9945,2399.0,2398.3,3.2078]
[1751048360400,6.4095,2399.0,2398.6,6.818]
[1751048360599,0.83349,2398.8,2398.6,7.65152]
[1751048360802,6.4095,2399.0,2398.6,6.818]
[1751048361005,2.24849,2398.7,2398.6,6.818]
[1751048361399,2.24849,2398.7,2398.3,3.2078]
[1751048361400,0.8336,2398.4,2398.3,10.85943]
[1751048361599,0.83358,2398.5,2398.3,10.85943]
[1751048361797,0.8336,2398.4,2398.3,10.0258]
[1751048361997,0.83355,2398.6,2398.3,10.0258]
[1751048362203,4.9945,2398.7,2398.6,0.83353]
[1751048362403,1.50257,2398.8,2398.7,0.83349]
[1751048362701,6.818,2399.2,2398.6,3.2078]
[1751048362702,4.6228,2399.3,2398.6,3.2078]
[1751048362897,0.83342,2399.0,2398.7,0.83347]
[1751048363097,4.9945,2398.8,2398.7,0.83347]
[1751048363795,1.97798,2398.8,2398.7,15.74440974]
[1751048364100,0.83335,2399.2,2399.0,0.83337]
[1751048364299,1.9779,2399.2,2399.1,0.83335]
[1751048364999,0.83335,2399.1,2399.0,10.0258]
[1751048365196,0.83335,2399.1,2399.0,3.2078]
[1751048365395,2.26665,2399.1,2399.0,3.2078]
[1751048365905,7.26455,2399.1,2399.0,3.2078]
[1751048366700,5.83125,2399.1,2399.0,3.2078]
[1751048367209,5.83125,2399.1,2398.7,6.818]
[1751048367506,0.83346,2398.8,2398.7,3.2078]
[1751048368102,5.83136,2398.8,2398.7,3.2078]
[1751048368703,4.9979,2398.8,2398.7,3.2078]
[1751048369007,5.83136,2398.8,2398.7,3.2078]
[1751048369804,0.8336,2398.5,2398.4,3.2078]
[1751048370905,0.8336,2398.5,2398.1,44.0078]
[1751048370906,0.83367,2398.2,2398.1,44.0078]
[1751048371102,0.83367,2398.2,2398.1,3.2078]
[1751048371409,0.83382,2397.8,2397.6,3.2078]
[1751048371610,0.83382,2397.8,2397.6,4.04167]
[1751048371813,4.9979,2398.2,2397.7,0.83383]
[1751048372008,0.83384,2397.7,2397.6,3.2078]
[1751048372208,0.83384,2397.7,2396.6,10.36598157]
[1751048372209,4.45397519,2397.7,2396.6,10.36598157]
[1751048372512,3.2078,2397.4,2397.2,0.834]
[1751048372817,3.2078,2397.4,2397.3,0.83398]
[1751048373003,3.2078,2397.4,2397.3,6.819]
[1751048373204,4.45678608,2397.4,2397.3,7.65298]
[1751048373602,4.45674603,2397.4,2397.0,1.52247]
[1751048373806,4.04176,2397.4,2397.1,7.65304]
[1751048374003,3.2078,2397.4,2397.0,6.819]
[1751048374208,3.2078,2397.1,2397.0,7.65308]
[1751048374602,3.2078,2397.1,2397.0,12.65308]
[1751048374909,3.2078,2397.7,2397.3,0.83398]
[1751048375110,0.83376,2398.0,2397.5,3.2078]
[1751048375300,1.25398627,2397.9,2397.8,0.83381]
[1751048375609,1.25398627,2397.9,2397.8,7.65381]
[1751048375805,3.2078,2398.1,2398.0,0.83374]
[1751048376310,8.1978,2398.1,2398.0,6.82]
[1751048376509,8.1978,2398.1,2398.0,48.45374]
[1751048376808,8.1978,2398.1,2398.0,7.65374]
[1751048377014,8.1978,2398.1,2398.0,6.82]
[1751048377714,8.1978,2398.1,2398.0,7.65374]
[1751048378206,8.1978,2398.1,2398.0,6.82]
[1751048378412,8.1978,2398.1,2398.0,7.65374]
[1751048379004,8.1978,2398.1,2398.0,6.82]
[1751048379209,10.62706426,2398.1,2398.0,32.898]
[1751048379410,8.1978,2398.1,2398.0,33.73174]
[1751048379812,8.1978,2398.1,2398.0,32.898]
[1751048380007,8.1978,2398.1,2398.0,33.73174]
[1751048380215,8.1978,2398.1,2398.0,32.898]
[1751048380416,8.1978,2398.1,2398.0,33.73174]
[1751048381014,8.1978,2398.1,2397.9,47.62]
[1751048381215,2.19224,2398.0,2397.9,6.82]
[1751048381512,0.83377,2397.9,2397.8,6.82]
[1751048381814,3.44299,2397.9,2396.9,3.2078]
[1751048382114,3.2078,2397.4,2397.3,0.83398]
[1751048382915,2.44807645,2397.7,2397.6,0.83388]
[1751048383116,2.44807645,2397.7,2397.6,6.82]
[1751048383317,3.8749,2397.8,2397.2,50.8288]
[1751048383516,0.83392,2397.5,2397.3,0.83396]
[1751048383716,1.3585,2397.6,2397.4,0.83394]
[1751048384016,3.2806625,2397.7,2397.5,26.93389]
[1751048384218,2.4468125,2397.7,2397.6,7.65488]
[1751048384519,2.20534,2397.7,2397.6,6.821]
[1751048384713,3.8183125,2397.7,2397.6,6.821]
[1751048384917,6.3615,2397.7,2397.6,7.65488]
[1751048385113,4.99,2397.7,2397.6,7.65488]
[1751048385523,4.99,2397.7,2397.6,6.821]
[1751048385822,4.99,2397.7,2397.6,7.65488]
[1751048386023,4.99,2397.7,2397.6,6.821]
[1751048386219,4.99,2397.7,2397.6,7.65488]
[1751048387220,4.99,2397.7,2397.6,12.65488]
[1751048387515,4.99,2397.7,2397.6,7.65488]
[1751048387822,6.2004537,2397.7,2397.6,6.821]
[1751048388020,6.2004537,2397.7,2397.2,45.4282]
[1751048388227,1.2104537,2397.6,2397.3,33.83596]
[1751048388414,2.0443637,2397.5,2397.4,6.821]
[1751048388819,2.7766637,2397.5,2397.4,6.821]
[1751048389325,5.9844637,2397.5,2397.4,6.821]
[1751048390023,8.4312762,2397.5,2397.4,6.821]
[1751048390326,7.3337637,2397.5,2397.4,6.821]
[1751048390624,0.83405,2397.1,2397.0,47.799]
[1751048390827,1.2104537,2397.1,2397.0,74.79607]
[1751048391032,2.0445037,2397.1,2397.0,73.962]
[1751048391233,0.83412,2396.9,2396.8,51.2318]
[1751048391431,0.83408,2397.0,2396.8,84.4348]
[1751048391628,2.18337,2397.1,2396.9,0.83412]
[1751048391830,2.18337,2397.1,2397.0,26.204]
[1751048392024,1.18528283,2397.1,2397.0,27.03808]
[1751048392233,3.2078,2397.2,2397.0,27.03808]
[1751048392234,0.83398,2397.3,2397.0,26.204]
[1751048392536,1.18491601,2397.2,2397.1,0.83404]
[1751048393333,0.83396,2397.4,2397.0,26.204]
[1751048393541,2.53139658,2397.3,2397.2,0.83401]
[1751048393734,1.18459658,2397.3,2397.2,7.83401]
[1751048394236,4.04171,2397.5,2397.3,0.83396]
[1751048394433,3.2078,2397.5,2396.9,0.6913]
[1751048394640,0.83406,2397.1,2397.0,33.212]
[1751048394837,0.83403,2397.2,2397.0,34.04608]
[1751048395031,0.83405,2397.1,2397.0,33.212]
[1751048395541,2.08496,2397.3,2396.9,7.0]
[1751048395737,2.89604,2397.2,2397.0,27.06508]
[1751048395938,0.7152,2397.2,2397.1,0.83405]
[1751048396238,4.99,2397.4,2397.0,26.231]
[1751048396438,7.27176,2397.4,2397.2,0.83401]
[1751048396735,6.4378,2397.4,2397.3,27.08198]
[1751048397137,4.99,2397.4,2397.3,27.08198]
[1751048397532,4.99,2397.4,2397.3,26.248]
[1751048397728,4.99,2397.4,2396.9,1.3464]
[1751048397937,0.834,2397.3,2397.0,34.10406]
[1751048398138,0.83406,2397.1,2396.8,92.86593]
[1751048398444,0.83408,2397.0,2396.9,33.27]
[1751048398844,0.83411,2397.0,2396.8,92.86593]
[1751048399135,0.83411,2397.0,2396.9,33.27]
[1751048399531,0.83412,2396.9,2396.8,92.0318]
[1751048399745,0.83412,2396.9,2396.8,88.824]
[1751048399943,0.83412,2396.9,2396.8,81.289]
[1751048400244,0.83421,2396.7,2396.5,4.04204]
[1751048400433,2.0993,2396.8,2396.7,0.83419]
[1751048400638,0.83412,2396.9,2396.7,27.10316]
[1751048400837,0.83419,2396.7,2396.6,7.0]
[1751048401132,2.08548,2396.7,2396.1,4.04218]
[1751048401342,3.2078,2396.5,2396.1,3.2078]
[1751048401536,2.26451,2396.4,2396.2,27.14134]
[1751048401737,2.0974,2396.4,2396.3,0.83433]
[1751048401942,0.6672,2396.4,2396.3,0.83433]
[1751048402136,0.6672,2396.4,2395.8,3.2078]
[1751048402342,3.4009,2396.3,2395.8,11.04329]
[1751048402544,0.83442,2396.1,2395.9,26.33]
[1751048402845,1.4414,2396.0,2395.9,26.33]
[1751048403145,1.9595,2396.3,2395.9,26.33]
[1751048403340,0.83441,2396.1,2395.9,26.33]
[1751048403534,0.83441,2396.1,2395.8,44.84228]
[1751048403740,3.4009,2396.3,2395.8,44.84228]
[1751048403741,0.83438,2396.2,2395.9,33.323]
[1751048403935,0.83442,2396.1,2395.9,33.323]
[1751048404138,0.83447,2395.9,2395.8,3.2078]
[1751048404338,0.83447,2395.9,2395.8,29.5718]
[1751048404543,0.6672,2396.4,2396.1,0.8344]
[1751048404847,0.6672,2396.4,2396.2,0.83436]
[1751048405047,0.6672,2396.4,2396.3,0.83433]
[1751048405245,5.6572,2396.4,2396.3,0.83433]
[1751048405844,5.6572,2396.4,2396.2,0.83434]
[1751048406048,5.6572,2396.4,2396.1,36.5738]
[1751048406249,5.6572,2396.4,2396.2,0.83434]
[1751048406549,5.6572,2396.4,2396.3,0.83433]
[1751048407251,0.6672,2396.4,2396.2,0.83434]
[1751048407549,4.99,2396.3,2396.2,0.83434]
[1751048407949,4.99,2396.3,2396.2,34.20534]
[1751048408450,0.7187,2396.6,2396.2,33.371]
[1751048408653,4.99,2396.4,2396.3,0.83431]
[1751048408846,4.99,2396.4,2396.3,33.35]
[1751048409040,4.99,2396.4,2396.3,34.18433]
[1751048410053,4.99,2396.4,2396.3,27.18233]
[1751048411852,4.99,2396.4,2396.3,26.348]
[1751048412052,0.83438,2396.2,2396.1,7.002]
[1751048412245,0.681,2396.3,2396.1,33.34]
[1751048412450,0.681,2396.3,2396.1,34.17438]
[1751048412651,6.50534,2396.3,2396.1,34.17438]
[1751048412852,5.671,2396.3,2396.2,27.17636]
[1751048413254,6.50533,2396.3,2396.2,26.342]
[1751048413447,6.50535,2396.3,2396.1,0.83438]
[1751048413647,5.671,2396.3,2396.2,0.83436]
[1751048414049,4.99,2396.3,2396.2,0.83436]
[1751048414248,4.99,2396.3,2396.2,11.04516]
[1751048416149,4.99,2396.3,2396.0,27.22342]
[1751048416452,0.83439,2396.2,2395.9,7.003]
[1751048416657,0.83439,2396.2,2396.1,26.401]
[1751048416852,5.82434,2396.3,2396.1,26.401]
[1751048417151,4.99,2396.3,2396.2,0.83436]
[1751048417361,4.99,2396.3,2396.2,34.23136]
[1751048417555,4.99,2396.3,2396.2,36.32956]
[1751048417860,0.83424,2396.6,2396.4,0.83427]
[1751048418055,0.83424,2396.6,2396.5,26.393]
[1751048418253,0.83424,2396.6,2396.1,3.2078]
[1751048418254,4.99,2396.5,2396.1,3.2078]
[1751048418562,3.2078,2396.3,2395.9,27.23645]
[1751048418761,0.8344,2396.1,2396.0,26.402]
[1751048419157,0.83447,2395.9,2395.8,3.2078]
[1751048419462,3.2078,2395.9,2395.8,0.8345]
[1751048419646,4.99,2396.0,2395.8,26.424]
[1751048419850,4.99,2396.0,2395.9,0.83447]
[1751048420152,1.51297,2396.5,2396.2,0.83434]
[1751048420355,0.6787,2396.5,2396.4,0.83429]
[1751048421362,0.83434,2396.3,2396.0,41.63441]
[1751048421660,4.04213,2396.3,2396.1,33.585]
[1751048421856,4.04214,2396.3,2396.1,33.585]
[1751048422056,3.2078,2396.3,2395.6,3.2078]
[1751048422257,4.04226,2396.0,2395.7,26.521]
[1751048422459,3.2078,2396.0,2395.7,26.521]
[1751048422661,0.83457,2395.6,2395.5,88.858]
[1751048422862,3.2078,2395.6,2395.5,122.514]
[1751048423151,9.5947,2395.9,2395.5,75.2906]
[1751048423352,9.5947,2395.9,2395.5,74.456]
[1751048423553,4.6025,2395.9,2395.5,74.456]
[1751048423758,4.9922,2395.6,2395.5,75.2906]
[1751048423957,4.9922,2395.6,2395.5,26.531]
[1751048424263,4.9922,2395.6,2395.5,27.3656]
[1751048425964,4.9922,2395.6,2395.5,32.3656]
[1751048426257,2.135,2396.5,2395.7,2.08606]
[1751048426454,2.135,2396.5,2395.9,3.2078]
[1751048426650,2.9692,2396.5,2396.2,0.83427]
[1751048426857,2.135,2396.5,2396.3,34.51524]
[1751048427060,2.96918,2396.5,2396.4,26.541]
[1751048427266,2.135,2396.5,2396.4,26.541]
[1751048427456,2.135,2396.5,2396.4,27.37521]
[1751048427760,2.135,2396.5,2396.4,26.541]
[1751048428151,0.83423,2396.4,2396.2,26.533]
[1751048428361,1.4073,2396.3,2396.2,27.36728]
[1751048428556,3.2078,2396.6,2396.2,26.533]
[1751048428758,4.04195,2396.6,2396.4,0.83421]
[1751048428951,3.2078,2396.6,2396.5,27.39818]
[1751048429153,3.2078,2396.6,2396.5,26.564]
[1751048429354,5.44924,2396.6,2396.5,26.564]
[1751048429567,9.91527648,2396.6,2396.5,26.564]
[1751048429759,10.74941648,2396.6,2396.5,26.564]
[1751048432063,9.91527648,2396.6,2395.9,3.2078]
[1751048432362,9.55557,2396.6,2396.3,0.83424]
[1751048432565,9.55557,2396.6,2396.3,27.35924]
[1751048432956,8.7214,2396.6,2396.3,26.525]
[1751048433162,8.7214,2396.6,2396.5,0.83418]
[1751048433163,4.6151,2396.6,2396.5,0.83418]
[1751048433567,3.2078,2396.6,2396.5,0.83418]
[1751048433769,8.2041,2396.6,2396.5,0.83418]
[1751048434764,9.6027,2396.6,2396.4,7.135]
[1751048434964,9.6027,2396.6,2396.5,0.83418]
[1751048435167,8.2041,2396.6,2396.5,0.83418]
[1751048435462,4.9963,2396.6,2396.5,0.83418]
[1751048436073,4.9963,2396.6,2396.5,5.83418]
[1751048436259,4.9963,2396.6,2396.5,34.45918]
[1751048437261,0.7073,2396.8,2396.5,33.625]
[1751048437262,0.83414,2396.7,2396.5,33.625]
[1751048437469,5.83042,2396.7,2396.4,0.8342]
[1751048437669,2.0728,2396.8,2396.4,0.8342]
[1751048437670,2.19965,2396.6,2396.4,26.505]
[1751048437861,2.19965,2396.6,2396.4,27.3392]
[1751048437862,1.3655,2396.6,2396.4,27.3392]
[1751048438069,2.3934,2396.5,2396.4,68.1392]
[1751048438465,2.3934,2396.5,2396.4,27.3392]
[1751048439669,2.3934,2396.5,2396.4,32.3392]
[1751048439872,2.1859,2396.8,2396.7,0.83411]
[1751048440071,2.1859,2396.8,2396.7,27.34811]
[1751048440368,5.7036,2396.8,2396.7,34.48311]
[1751048441169,6.53768,2396.8,2396.7,33.649]
[1751048441364,8.01628,2396.8,2396.7,33.639]
[1751048443665,0.83412,2396.7,2396.5,0.83417]
[1751048443865,1.361,2396.6,2396.5,7.96918]
[1751048444065,1.361,2396.6,2396.5,33.613]
[1751048444271,1.361,2396.6,2396.5,34.44718]
[1751048445174,5.7036,2396.8,2396.5,33.613]
[1751048445376,1.4032,2396.7,2396.6,0.83415]
[1751048446072,5.7036,2396.8,2396.7,0.83411]
[1751048446369,5.7036,2396.8,2396.7,27.28711]
[1751048447771,4.9963,2396.8,2396.7,27.28711]
[1751048449376,3.9353,2397.2,2397.1,0.83397]
[1751048449572,3.9353,2397.2,2397.1,27.26797]
[1751048450076,8.9316,2397.2,2397.1,27.26797]
[1751048450772,0.83401,2397.0,2396.6,7.146]
[1751048451074,3.8761,2396.9,2396.8,27.26808]
[1751048451270,5.3425,2396.9,2396.8,27.26808]
[1751048451975,3.9353,2397.2,2397.1,0.83397]
[1751048452269,3.9353,2397.2,2397.1,27.25297]
[1751048452468,3.9353,2397.2,2397.1,26.419]
[1751048452664,11.42008357,2397.2,2397.1,26.419]
[1751048452869,12.88648357,2397.2,2397.1,26.419]
[1751048453070,13.72042357,2397.2,2397.1,26.419]
[1751048453469,13.72042357,2397.2,2397.0,27.258]
[1751048453677,0.6882,2397.1,2397.0,27.258]
[1751048453865,0.7275,2397.2,2397.1,0.83397]
[1751048454069,5.7238,2397.2,2397.1,0.83397]
[1751048454671,0.7275,2397.2,2397.1,0.83397]
[1751048455072,3.9353,2397.2,2397.1,0.83397]
[1751048456077,0.7275,2397.2,2397.1,0.83397]
[1751048456274,5.7238,2397.2,2397.1,0.83397]
[1751048456978,7.8447,2397.2,2397.1,0.83397]
[1751048458980,11.0525,2397.2,2397.1,0.83397]